[Event "93rd German Championship 2022"]
[Site "Magdeburg"]
[Date "2022.08.15"]
[Round "2.13"]
[White "Malek, Daniel"]
[Black "Colbow, Collin"]
[Result "1-0"]
[ECO "E15"]
[WhiteElo "2355"]
[BlackElo "2325"]
[Annotator "TA"]
[PlyCount "77"]
[EventDate "2022.08.14"]
[EventType "swiss"]
[EventCountry "GER"]
[SourceTitle "playchess.com"]
[Source "ChessBase"]
[SourceQuality "1"]
[TimeControl "40/5400+30:1800+30"]

{[%evp 19,77,5,10,7,20,14,13,0,31,0,0,15,18,14,22,18,25,7,29,25,60,37,59,60,58,24,45,51,76,76,66,23,76,62,113,95,122,118,116,104,140,139,137,137,148,141,234,227,212,172,437,415,754,759,737,730,29975,29976,6310,6307]} 1. d4 {[%emt 0:00:04]} Nf6 {[%emt 0:09:58]} 2. c4 {[%emt 0:00:11]} e6 {[%emt 0:00:15]} 3. Nf3 {[%emt 0:00:09]} b6 {[%emt 0:00:08]} 4. g3 {[%emt 0:00:37]} Ba6 {[%emt 0:00:29]} 5. b3 {[%emt 0:00:12]} Bb4+ {[%emt 0:00:26]} 6. Bd2 {[%emt 0:00:08]} Be7 {[%emt 0:01:03]} 7. Nc3 {[%emt 0:00:14]} d5 {[%emt 0:04:58]} 8. cxd5 {[%emt 0:00:13]} exd5 {[%emt 0:02:44]} 9. Bg2 {[%emt 0:00:11]} O-O {[%emt 0:07:22]} 10. O-O {[%emt 0:00:12]} Re8 {[%emt 0:01:13] 10...Nbd7 is setting a new trend.} 11. a3 {[%emt 0:00:23] E15: Queen's Indian: 4 g3 sidelines, 4 g3 Ba6 and 4 g3 Bb7 early deviations.} c6 {[%emt 0:04:38]} 12. b4 {[%emt 0:00:23]} Nbd7 {[%emt 0:04:51]} 13. Bf4 {[%emt 0:08:32] The position is equal.} Nh5 {[%emt 0:14:36]} 14. Be3 {[%emt 0:08:33] [#]} (14. Be5 {feels hotter.} f6 15. b5 Bb7 16. Bf4) 14... Nhf6 $146 {[%emt 0:06:00]} ({Predecessor:} 14... Bd6 15. b5 Bxb5 16. Nxb5 cxb5 17. Qb3 Ndf6 18. Qxb5 Qe7 19. a4 g6 20. Rfe1 Bb4 {1-0 (55) Cuenca Jimenez,J (2552)-Fernandes,J (2126) Ovar 2022}) 15. Rb1 {[%emt 0:06:01]} Bb7 {[%emt 0:05:57]} 16. a4 {[%emt 0:01:45]} Rc8 {[%emt 0:08:43]} 17. Qb3 {[%emt 0:05:43]} Ba8 {[%emt 0:05:08]} 18. Rfd1 {[%emt 0:00:21]} h6 {[%emt 0:02:43]} 19. Ne1 {[%emt 0:24:26][%cal Bf3e1,Be1c2,Bc2e3][%mdl 32]} (19. b5 {is more complex.} c5 20. Ne5 c4 21. Qc2) 19... Qc7 {[%emt 0:06:33]} 20. Bf4 {[%emt 0:04:44]} Bd6 {[%emt 0:01:33]} 21. Bxd6 {[%emt 0:05:33]} Qxd6 {[%emt 0:00:04]} 22. Nc2 {[%emt 0:00:39]} g6 {[%emt 0:04:04]} 23. Ne3 {[%emt 0:00:45]} Qe6 {[%emt 0:06:12]} 24. b5 {[%emt 0:10:30]} c5 {[%emt 0:00:39]} 25. Qa3 {[%emt 0:02:27]} (25. Nexd5 {is interesting.} c4 26. Nxf6+ Nxf6 27. Qb2) 25... Kg7 {[%emt 0:01:27]} (25... Rc7 $11 {remains equal.}) 26. Rb2 $16 {[%emt 0:01:22]} Rc7 {[%emt 0:00:43]} (26... cxd4 $14 27. Rxd4 Ne5) 27. dxc5 {[%emt 0:01:28] [#] Strongly threatening c6.} Rxc5 {[%emt 0:00:26]} 28. Rbd2 {[%emt 0:00:11] White is more active.} Ne5 {[%emt 0:00:52]} 29. Ncxd5 {[%emt 0:00:56]} ({Inferior is} 29. Bxd5 Qc8 30. Rc1 Bxd5 31. Rxd5 (31. Nexd5 $2 Nc4 $19) 31... Nxd5 32. Nexd5 h5 $17) 29... Nxd5 {[%emt 0:00:08]} 30. Bxd5 {[%emt 0:00:11]} Bxd5 {[%emt 0:00:09]} 31. Rxd5 {[%emt 0:00:09]} Rxd5 {[%emt 0:01:25]} 32. Rxd5 {[%emt 0:00:50]} Kh7 {[%emt 0:00:10]} (32... Ng4 $16) 33. Rd6 $18 {[%emt 0:01:42]} Qh3 {[%emt 0:00:48]} 34. Rd4 {[%emt 0:02:23] Inhibits Ng4.} Qh5 $2 {[%emt 0:00:27]} (34... h5 35. Qd6 Qc8) 35. Qb2 {[%emt 0:00:37]} Qh3 {[%emt 0:00:35]} (35... g5 $142 36. Rd6 Kg8) 36. Re4 {[%emt 0:01:52]} f6 {[%emt 0:00:13]} 37. f4 {[%emt 0:03:09]} Ng4 {[%emt 0:00:40] [#]} 38. Nxg4 $1 {[%emt 0:00:13]} Rxe4 {[%emt 0:00:06]} 39. Nxf6+ {[%emt 0:00:07] Weighted Error Value: White=0.09 (flawless) /Black=0.64} 1-0

[Event "93rd German Championship 2022"]
[Site "Magdeburg"]
[Date "2022.08.15"]
[Round "2.14"]
[White "Feidt, Jonas"]
[Black "Miller, Eduard"]
[Result "0-1"]
[ECO "A15"]
[WhiteElo "1901"]
[BlackElo "2350"]
[Annotator "TA"]
[PlyCount "60"]
[EventDate "2022.08.14"]
[EventType "swiss"]
[EventCountry "GER"]
[SourceTitle "playchess.com"]
[Source "ChessBase"]
[SourceQuality "1"]
[TimeControl "40/5400+30:1800+30"]

{[%evp 15,60,12,27,13,23,11,27,10,10,-14,-20,-17,26,-62,-52,-41,-42,-74,-69,-101,-69,-72,-52,-60,-64,-150,-160,-275,-283,-279,-266,-350,-346,-327,-322,-393,-382,-374,-348,-347,-287,-369,-346,-389,-413,-452,-445]} 1. c4 {[%emt 0:00:04]} Nf6 {[%emt 0:00:06]} 2. g3 {[%emt 0:00:20]} g6 {[%emt 0:00:04]} 3. Bg2 {[%emt 0:00:06]} Bg7 {[%emt 0:00:04]} 4. Nc3 {[%emt 0:00:10]} O-O {[%emt 0:00:06]} 5. e4 {[%emt 0:00:30]} d6 {[%emt 0:00:04]} 6. Nge2 {[%emt 0:00:14]} c5 {[%emt 0:00:06]} 7. O-O {[%emt 0:00:17]} Nc6 {[%emt 0:00:05]} 8. d3 {[%emt 0:00:08]} Bg4 {[%emt 0:00:07]} 9. f3 {[%emt 0:05:43] A36: Symmetrical English vs ...g6: 4 Bg2 Bg7.} Bd7 {[%emt 0:00:34]} 10. Be3 {[%emt 0:00:34]} a6 {[%emt 0:00:06]} 11. a4 {[%emt 0:15:04] White has an edge.} Rb8 {[%emt 0:00:12]} 12. d4 {[%emt 0:17:12]} cxd4 {[%emt 0:12:00]} 13. Nxd4 {[%emt 0:00:05]} Qb6 {[%emt 0:01:40]} 14. Qb3 {[%emt 0:10:24]} ({White should play} 14. Rf2 $11) 14... Qxb3 $15 {[%emt 0:05:33]} 15. Nxb3 {[%emt 0:00:07] [#]} Rfc8 $146 {[%emt 0:00:18]} ({Predecessor:} 15... b6 16. Nd2 Rfc8 17. Rfc1 Be6 18. Bf1 Nd7 19. Rab1 Nc5 20. b3 Nb4 21. Nd5 Bxd5 22. cxd5 {0-1 (49) Stanec,N (2492)-Weinzettl,E (2297) Austria 2014}) 16. c5 {[%emt 0:12:24]} Be6 {[%emt 0:01:05]} 17. Nd2 {[%emt 0:00:08]} dxc5 {[%emt 0:04:49]} 18. Bxc5 {[%emt 0:00:33]} Nd7 {[%emt 0:00:27][%cal Bf6d7,Bd7e5,Be5d3][%mdl 32]} 19. Bf2 {[%emt 0:03:39]} Nde5 {[%emt 0:10:38] Hoping for ...Nd3.} 20. Rab1 {[%emt 0:07:34]} ({White should try} 20. f4 $1 $15 Nd3 21. e5) 20... Nd3 $36 {[%emt 0:04:24][%cal Od3b2][%mdl 2048] Keeping White busy. Black is more active.} 21. Bb6 {[%emt 0:03:44] [#]} (21. Nd5 $17 {might work better.}) 21... Nxb2 $1 $19 {[%emt 0:04:05][%mdl 512]} 22. Nd5 {[%emt 0:03:13]} Nxa4 {[%emt 0:01:19]} 23. Rfc1 {[%emt 0:01:24]} Nxb6 {[%emt 0:03:14]} 24. Nxb6 {[%emt 0:00:17]} Bd4+ {[%emt 0:00:31]} 25. Kh1 {[%emt 0:00:19]} Bxb6 {[%emt 0:00:08]} 26. Rxb6 {[%emt 0:00:09]} Na5 {[%emt 0:00:13]} 27. Ra1 {[%emt 0:00:44]} Rc5 {[%emt 0:04:51]} 28. h3 {[%emt 0:00:57]} Rd8 {[%emt 0:00:16]} 29. Nf1 {[%emt 0:00:27]} Rd3 {[%emt 0:00:48]} 30. g4 {[%emt 0:00:55]} Rb3 {[%emt 0:00:05] Weighted Error Value: White=0.44/Black=0.08 (flawless)} 0-1

[Event "93rd German Championship 2022"]
[Site "Magdeburg"]
[Date "2022.08.15"]
[Round "2.15"]
[White "Dobrikov, Marco"]
[Black "Dahl, Christoph"]
[Result "1-0"]
[ECO "A20"]
[WhiteElo "2223"]
[BlackElo "2355"]
[Annotator "TA"]
[PlyCount "87"]
[EventDate "2022.08.14"]
[EventType "swiss"]
[EventCountry "GER"]
[SourceTitle "playchess.com"]
[Source "ChessBase"]
[SourceQuality "1"]
[TimeControl "40/5400+30:1800+30"]

{[%evp 17,87,38,35,25,30,36,28,20,16,8,7,21,64,50,66,79,82,82,80,82,68,31,36,32,39,9,119,113,122,115,149,147,146,112,234,221,231,231,231,223,233,231,233,219,222,222,221,225,259,264,283,276,260,243,286,280,226,158,307,306,308,281,398,398,398,394,507,459,450,435,3196,2790]} 1. c4 {[%emt 0:00:07]} e5 {[%emt 0:00:29]} 2. g3 {[%emt 0:00:05]} Nf6 {[%emt 0:00:33]} 3. Bg2 {[%emt 0:00:05]} d5 {[%emt 0:00:40]} 4. cxd5 {[%emt 0:00:04]} Nxd5 {[%emt 0:00:26]} 5. Nf3 {[%emt 0:00:04]} Nc6 {[%emt 0:01:26]} 6. O-O {[%emt 0:00:29]} Be7 {[%emt 0:00:48][%cal Bf8e7,Be7d8,Bd8b6][%mdl 32]} 7. d4 {[%emt 0:00:20]} exd4 {[%emt 0:06:32]} 8. Nxd4 {[%emt 0:03:38]} Nxd4 {[%emt 0:15:27]} 9. Qxd4 {[%emt 0:00:45]} Nf6 {[%emt 0:00:08]} 10. Qxd8+ {[%emt 0:09:31] A20: English Opening: 1...e5.} (10. Qa4+ {is interesting.} c6 11. Rd1 Bd7 12. Nc3) 10... Bxd8 {[%emt 0:00:13]} 11. Nc3 {[%emt 0:00:49]} O-O {[%emt 0:00:31]} 12. e4 {[%emt 0:01:53] White has an edge.} c6 {[%emt 0:02:08]} 13. h3 {[%emt 0:02:20] [#]} Bb6 $146 {[%emt 0:05:28]} ({Predecessor:} 13... Be6 14. Na4 Be7 15. Be3 b6 16. Nc3 Nd7 17. Rfd1 Rad8 18. f4 f6 19. Bf1 Bb4 {1-0 (50) Loos,U (2063)-Borries,B (1830) Bad Wiessee 2019}) 14. Na4 {[%emt 0:19:13]} Bd4 {[%emt 0:03:23]} 15. Rd1 {[%emt 0:00:02]} c5 {[%emt 0:00:09]} 16. Nc3 {[%emt 0:01:34]} Rd8 {[%emt 0:07:49][%cal Bf8d8,Bd8d4,Bd4b4][%mdl 32]} 17. Be3 $36 {[%emt 0:03:55][%mdl 2048] White is really pushing.} Be6 {[%emt 0:01:28]} 18. Bxd4 {[%emt 0:01:47]} Rxd4 {[%emt 0:02:11]} 19. Nb5 {[%emt 0:02:04]} Rb4 {[%emt 0:02:54]} 20. Nc7 {[%emt 0:00:02]} Rc8 {[%emt 0:04:34]} 21. e5 {[%emt 0:01:09]} Ne8 {[%emt 0:01:36]} (21... Bd7 $11) 22. Nxe6 $16 {[%emt 0:02:16] White is more active.} fxe6 {[%emt 0:00:06] [#]} 23. b3 {[%emt 0:01:21]} Rc7 {[%emt 0:07:24]} 24. Rd8 {[%emt 0:00:37]} Kf8 {[%emt 0:00:57]} 25. Rad1 {[%emt 0:00:15]} b5 {[%emt 0:06:31] This move loses the game for Black.} (25... c4 $16) 26. Rb8 $18 {[%emt 0:03:07]} Rd4 {[%emt 0:01:04] [#]} 27. Rxd4 {[%emt 0:00:11]} cxd4 {[%emt 0:00:13][%mdl 4096] Endgame KRB-KRN} 28. Be4 {[%emt 0:00:31]} ({Worse is} 28. Rxb5 Rc1+ 29. Kh2 d3 $11) 28... Rc5 {[%emt 0:03:40]} 29. Bxh7 {[%emt 0:00:44]} Ke7 {[%emt 0:00:58]} 30. Rb7+ {[%emt 0:01:36]} Kd8 {[%emt 0:00:38]} 31. Bg6 {[%emt 0:01:40] Black must now prevent Rb8+.} ({Resist} 31. Rxa7 Rxe5 32. Kf1 Nc7) 31... Nc7 {[%emt 0:00:21]} 32. Rb8+ {[%emt 0:00:04]} ({Don't play} 32. Rxa7 $6 Rxe5 33. Kf1 Kd7) 32... Kd7 {[%emt 0:00:41]} 33. Rg8 {[%emt 0:00:40]} Rxe5 {[%emt 0:00:43]} 34. Rxg7+ {[%emt 0:00:01]} Kd6 {[%emt 0:01:05]} 35. h4 {[%emt 0:00:09]} a5 {[%emt 0:03:28]} 36. Kg2 {[%emt 0:01:31] And now h5 would win.} Nd5 {[%emt 0:02:55]} 37. h5 {[%emt 0:00:05] Strongly threatening h6.} d3 {[%emt 0:06:24]} (37... Rg5 $16) 38. Bxd3 {[%emt 0:01:47]} Rxh5 {[%emt 0:00:06]} 39. Bxb5 {[%emt 0:00:16]} Nc3 {[%emt 0:00:30]} (39... Ne3+ $142 40. Kf3 Rxb5) 40. Rd7+ {[%emt 0:00:30]} Kc5 {[%emt 0:00:30]} 41. Bc4 {[%emt 0:30:30]} e5 {[%emt 0:33:35]} 42. Ra7 {[%emt 0:04:57] White is clearly winning.} a4 {[%emt 0:01:12]} 43. f4 {[%emt 0:00:38]} e4 {[%emt 0:02:44]} (43... Kd4 $142 44. Rd7+ Kc5) 44. Ra5+ {Weighted Error Value: White=0.07 (flawless) /Black=0.30} 1-0

[Event "93rd German Championship 2022"]
[Site "Magdeburg"]
[Date "2022.08.15"]
[Round "2.16"]
[White "Koehler, Christian Friedrich"]
[Black "Vogel, Roven"]
[Result "0-1"]
[ECO "B21"]
[WhiteElo "2285"]
[BlackElo "2465"]
[Annotator "TA"]
[PlyCount "26"]
[EventDate "2022.08.14"]
[EventType "swiss"]
[EventCountry "GER"]
[SourceTitle "playchess.com"]
[Source "ChessBase"]
[SourceQuality "1"]
[TimeControl "40/5400+30:1800+30"]

{[%evp 12,26,0,0,0,0,0,-9,-4,-71,-60,-287,-283,-191,-57,-628,-617]} 1. e4 {[%emt 0:00:18]} c5 {[%emt 0:00:39]} 2. f4 {[%emt 0:00:07]} d5 {[%emt 0:03:35]} 3. exd5 {[%emt 0:00:16]} Nf6 {[%emt 0:07:57]} 4. Bb5+ {[%emt 0:00:15]} Nbd7 {[%emt 0:02:49]} 5. c4 {[%emt 0:00:14]} a6 {[%emt 0:00:26]} 6. Bxd7+ {[%emt 0:00:12]} Bxd7 {[%emt 0:00:56]} 7. Nf3 {[%emt 0:01:34]} e6 {[%emt 0:00:07] B21: Sicilian: 2 f4 and Morra Gambit.} 8. dxe6 {[%emt 0:01:36]} Bxe6 {[%emt 0:00:08]} 9. b3 {[%emt 0:01:13]} Bd6 {[%emt 0:05:14] The position is equal.} 10. d4 {[%emt 0:02:51]} (10. d3 $11 {remains equal.}) 10... cxd4 $17 {[%emt 0:01:30][%cal Od4d3] [#] ...d3! is the strong threat. Black is more active.} 11. Qxd4 $146 {[%emt 0:01:08] [#]} ({White should play} 11. O-O $1 $15) ({Predecessor:} 11. O-O O-O 12. Bb2 Bxf4 13. Bxd4 b5 14. cxb5 axb5 15. Nc3 b4 16. Ne2 Bh6 17. Bc5 {0-1 (31) Burke,M-Scherer,J ICCF email 2013}) 11... Qe7 $1 $19 {[%emt 0:03:02]} 12. Be3 {[%emt 0:10:33] [#]} Ng4 {[%emt 0:06:09]} ({Black should try} 12... Bb4+ $1 $19 13. Nbd2 Rd8) 13. Ne5 $2 {[%emt 0:11:10][%mdl 8192]} ({Don't go for} 13. Qxg7 $2 O-O-O 14. O-O Nxe3 $19) (13. c5 $15 Nxe3 14. cxd6 Nc2+ 15. Kd2 Nxd4 16. dxe7 Nxf3+ 17. gxf3) 13... Rd8 {[%emt 0:02:39] Weighted Error Value: White=1.03/Black=0.32} 0-1

[Event "93rd German Championship 2022"]
[Site "Magdeburg"]
[Date "2022.08.15"]
[Round "2.17"]
[White "Florstedt, Johannes"]
[Black "Westphal, Wolfgang"]
[Result "1-0"]
[ECO "B01"]
[WhiteElo "2368"]
[BlackElo "2175"]
[Annotator "TA"]
[PlyCount "37"]
[EventDate "2022.08.14"]
[EventType "swiss"]
[EventCountry "GER"]
[SourceTitle "playchess.com"]
[Source "ChessBase"]
[SourceQuality "1"]
[TimeControl "40/5400+30:1800+30"]

{[%evp 17,37,40,63,58,66,58,99,87,131,126,105,102,126,137,246,184,188,189,183,187,168,167]} 1. e4 {[%emt 0:00:16]} d5 {[%emt 0:00:13]} 2. exd5 {[%emt 0:00:08]} Qxd5 {[%emt 0:00:06]} 3. Nc3 {[%emt 0:00:09]} Qa5 {[%emt 0:00:04]} 4. d4 {[%emt 0:00:12]} c6 {[%emt 0:00:15]} 5. Bc4 {[%emt 0:00:22]} Nf6 {[%emt 0:00:09]} 6. Nf3 {[%emt 0:00:10]} Bf5 {[%emt 0:00:12]} 7. Bd2 {[%emt 0:00:14]} e6 {[%emt 0:00:30]} 8. Nd5 {[%emt 0:00:09]} Qd8 {[%emt 0:00:06]} 9. Nxf6+ {[%emt 0:00:07]} gxf6 {[%emt 0:00:05] 9...gxf6 is better than 9...Qxf6.} 10. O-O {[%emt 0:00:14][%cal Bh1f1,Bf1e1,Be1e6][%mdl 32] B01: Scandinavian Defence.} Nd7 {[%emt 0:04:35]} 11. Re1 {[%emt 0:01:07]} Qc7 {[%emt 0:02:31]} 12. Nh4 $1 {[%emt 0:04:36] White is better.} Bg6 {[%emt 0:00:21] [#]} 13. Bxe6 $1 {[%emt 0:00:10][%mdl 512] White is more active.} fxe6 {[%emt 0:00:07]} 14. Rxe6+ {[%emt 0:00:06]} Kf7 {[%emt 0:02:06] [#]} 15. Qe2 {[%emt 0:00:26] Threatens to win with Re1.} (15. Qg4 $6 Bd6 $11) 15... Bd6 {[%emt 0:21:51] [#]} (15... Rg8 $16) 16. Bf4 $1 {[%emt 0:00:50][%mdl 512] [#]} Rhe8 $146 {[%emt 0:14:57] [#]} (16... Bxf4 17. Re7+ Kf8 18. Nxg6+ hxg6 19. Qe6) ({Predecessor:} 16... Rae8 17. Re1 Ne5 18. Rxe8 Rxe8 19. dxe5 Bxe5 20. Qc4+ Kg7 21. Nxg6 hxg6 22. Bg3 Re7 23. Bxe5 Rxe5 24. Qc3 Rxe1+ 25. Qxe1 {1-0 (45) Orozbaev,E (1973)-Muromtsev,A (2161) Chess.com INT 2020}) 17. Re1 $1 {[%emt 0:00:51][%cal Re6e8]} Be5 {[%emt 0:12:46]} 18. Rxe8 {[%emt 0:01:05] Really sharp!} ({And not} 18. Bxe5 fxe5 19. Rxe8 Rxe8 $15) 18... Rxe8 {[%emt 0:00:18]} 19. Nf3 {[%emt 0:09:19][%mdl 64] Pin. White took control after the opening.  Weighted Error Value: White=0.08 (flawless) /Black=0.27 (precise)} 1-0

[Event "93rd German Championship 2022"]
[Site "Magdeburg"]
[Date "2022.08.15"]
[Round "2.18"]
[White "Costa, Leonardo"]
[Black "Becker, Stefan"]
[Result "1-0"]
[ECO "B42"]
[WhiteElo "2316"]
[BlackElo "2101"]
[Annotator "TA"]
[PlyCount "85"]
[EventDate "2022.08.14"]
[EventType "swiss"]
[EventCountry "GER"]
[SourceTitle "playchess.com"]
[Source "ChessBase"]
[SourceQuality "1"]
[TimeControl "40/5400+30:1800+30"]

{[%evp 29,85,41,77,75,68,64,65,75,83,65,71,47,54,40,47,46,39,36,68,62,59,46,56,41,51,39,49,-30,44,6,17,16,0,24,63,86,68,54,164,0,189,198,281,46,31,-127,-148,-134,237,70,168,87,85,106,654,449,1274,1135]} 1. e4 {[%emt 0:01:10]} c5 {[%emt 0:00:11]} 2. Nf3 {[%emt 0:00:04]} e6 {[%emt 0:00:07]} 3. d4 {[%emt 0:00:03]} cxd4 {[%emt 0:00:05]} 4. Nxd4 {[%emt 0:00:04]} a6 {[%emt 0:00:08]} 5. Bd3 {[%emt 0:00:04]} Nf6 {[%emt 0:00:14]} 6. O-O {[%emt 0:00:09]} Qc7 {[%emt 0:00:06]} 7. Qe2 {[%emt 0:00:39]} d6 {[%emt 0:00:12]} 8. c4 {[%emt 0:00:38]} g6 {[%emt 0:00:16]} 9. Nc3 {[%emt 0:04:00]} Bg7 {[%emt 0:00:18]} 10. Nf3 {[%emt 0:06:15]} O-O {[%emt 0:00:37]} 11. Bf4 {[%emt 0:04:23]} Nh5 {[%emt 0:17:09]} 12. Bd2 {[%emt 0:00:56]} Nc6 {[%emt 0:00:28]} 13. Rac1 {[%emt 0:02:47]} Nf6 {[%emt 0:03:40]} 14. Rfd1 {[%emt 0:03:55]} Nd7 {[%emt 0:01:35]} 15. Bf4 {[%emt 0:02:19]} Nce5 {[%emt 0:05:21]} 16. b3 {[%emt 0:11:08] B42: Sicilian: Kan Variation: 5 Bd3.} b6 {[%emt 0:04:24]} 17. Bb1 {[%emt 0:01:06] White is more active.} Rd8 {[%emt 0:04:37] [#]} 18. Bg5 $146 {[%emt 0:06:20] White is slightly better.} ({Predecessor:} 18. Nd4 Bb7 19. Bg5 Re8 20. Kh1 Nc6 21. Nxc6 Qxc6 22. Qd2 Bf8 23. f4 f6 24. Bh4 Rad8 25. Ne2 Qc8 26. Nc3 {½-½ (44) Nurbekoglu,M-Telljohann,S GER corr 1993}) 18... Re8 {[%emt 0:05:11]} 19. Ne1 {[%emt 0:11:01]} f6 {[%emt 0:05:17]} 20. Bf4 {[%emt 0:01:52]} Bb7 {[%emt 0:02:25]} 21. Qd2 {[%emt 0:05:38]} Bf8 {[%emt 0:00:26]} 22. Nc2 {[%emt 0:01:17]} Rad8 {[%emt 0:08:01]} 23. Ne3 {[%emt 0:02:16]} Qb8 {[%emt 0:03:57][%cal Od6d5]} 24. Bg3 {[%emt 0:09:14]} Nf7 {[%emt 0:05:24]} 25. Kh1 {[%emt 0:04:11]} Qa8 {[%emt 0:02:41]} 26. Re1 {[%emt 0:06:09]} Nc5 {[%emt 0:06:50]} 27. Ng4 {[%emt 0:01:40]} Bg7 {[%emt 0:00:28]} 28. b4 {[%emt 0:02:31]} (28. f3 $14) 28... Nd7 {[%emt 0:02:59]} (28... f5 $1 $11) 29. f4 {[%emt 0:00:37]} f5 {[%emt 0:02:13]} 30. exf5 {[%emt 0:00:44]} gxf5 {[%emt 0:00:13]} 31. Ne3 {[%emt 0:00:47]} Nf6 {[%emt 0:00:34]} 32. Bh4 $1 {[%emt 0:00:34]} Qb8 {[%emt 0:03:30]} 33. Qf2 $36 {[%emt 0:01:12][%cal Ob1f5][%mdl 2048] White is pushing.} Kh8 {[%emt 0:01:26] [#]} (33... Nh6 $14) 34. Nc2 $2 {[%emt 0:01:10]} ({Better is} 34. Ncd5 $1 $18 {[%mdl 512]} Nd7 35. Bxd8 Rxd8 36. Bxf5 $1 {[%mdl 512]}) 34... Rc8 $2 {[%emt 0:02:14]} (34... Ng4 $11 {and Black stays safe.} 35. Qd2 d5 36. Bxd8 Rxd8 37. cxd5 (37. Rxe6 $2 dxc4 38. Rce1 Rxd2 $19) 37... Bxd5 38. Nxd5 Rxd5) 35. Nd4 $1 $18 {[%emt 0:01:42]} Nd8 {[%emt 0:10:19]} (35... Rxc4 36. Nxe6 Rxe6 37. Rxe6) (35... Ng4 {keeps fighting.} 36. Qd2 Nge5) 36. Bxf5 $2 {[%emt 0:01:31]} Rxc4 $14 {[%emt 0:01:53]} (36... exf5 $2 37. Bxf6 Ne6 38. Rxe6 $18) 37. Nxe6 $2 {[%emt 0:02:43]} (37. Bb1 $14 {stays ahead.}) 37... Nxe6 $17 {[%emt 0:00:14]} 38. Bxe6 {[%emt 0:00:34] [#]} ({Don't go for} 38. Rxe6 $2 Rxe6 39. Bxe6 Ne4 $19) 38... Rxb4 {[%emt 0:00:58][%mdl 8192]} (38... Rxc3 $1 $17 {[%mdl 512] keeps the pressure on.} 39. Rxc3 Ne4 40. Rxe4 Bxe4) 39. f5 $2 {[%emt 0:02:10]} ({Only move:} 39. a3 $18 Ne4 {[#]} 40. Qc2 $1) 39... d5 {[%emt 0:01:47]} (39... Rg4 $14) 40. Bxf6 {[%emt 0:00:34]} (40. Bg3 $18 Qd8 41. Rcd1) 40... Bxf6 $16 {[%emt 0:00:12]} 41. Nxd5 {[%emt 0:30:51]} Bh4 {[%emt 0:12:09][%mdl 8192]} (41... Bxd5 $16 42. Bxd5 Rd8) 42. Qe3 {[%emt 0:00:00] Threatening mate with Qc3+.} Bxe1 {[%emt 0:06:35]} (42... Rg4 $142 43. Qh3 h5) 43. Nxb4 {[%emt 0:00:00] Weighted Error Value: White=0.53/Black=0.69} 1-0